fUST/lending_fUST_20250112
["ID","MTS","AMOUNT","RATE_DAILY","PERIOD"]
[348573163,1736628639524,-500.0,0.00021917,3]
[348573165,1736628639533,-500.0,0.00021917,3]
[348573167,1736628639542,-500.0,0.00021917,3]
[348573169,1736628639552,-502.88426972,0.00021917,3]
[348573171,1736628639561,-500.0,0.00021917,3]
[348573173,1736628639570,-500.0,0.00021917,3]
[348573175,1736628639579,-500.0,0.00021917,3]
[348573177,1736628639588,-151.0,0.00021917,2]
[348573179,1736628639598,-151.0,0.00021917,2]
[348573181,1736628639607,-151.0,0.00021917,2]
[348573183,1736628639616,-500.0,0.00021917,3]
[348573186,1736628639626,-500.0,0.00021917,3]
[348573187,1736628639635,-500.0,0.00021917,3]
[348573190,1736628639645,-2544.33,0.00021917,3]
[348573191,1736628639655,-500.0,0.00021917,3]
[348573194,1736628639665,-500.0,0.00021917,3]
[348573196,1736628639675,-500.0,0.00021917,3]
[348573198,1736628639684,-500.0,0.00021917,3]
[348573200,1736628639694,-180.71999145,0.00021917,3]
[348573202,1736628639703,-500.0,0.00021917,3]
[348573204,1736628639712,-452.69403194,0.00021917,3]
[348573206,1736628639721,-500.0,0.00021917,3]
[348573208,1736628639731,-500.0,0.00021917,3]
[348573210,1736628639739,-500.0,0.00021917,3]
[348573212,1736628639749,-500.0,0.00021917,3]
[348573214,1736628639758,-500.0,0.00021917,3]
[348573216,1736628639767,-684.47,0.00021917,3]
[348573218,1736628639777,-500.0,0.00021917,3]
[348573220,1736628639787,-500.0,0.00021917,3]
[348573222,1736628639796,-500.0,0.00021917,3]
[348573224,1736628639807,-500.0,0.00021917,3]
[348573226,1736628639816,-500.0,0.00021917,3]
[348573228,1736628639826,-500.0,0.00021917,3]
[348573230,1736628639835,-500.0,0.00021917,3]
[348573231,1736628639844,-500.0,0.00021917,3]
[348573233,1736628639853,-504.70799912,0.00021917,3]
[348573235,1736628639863,-500.0,0.00021917,3]
[348573237,1736628639873,-365.73285434,0.00021917,3]
[348573239,1736628639883,-369.6719459,0.00021917,3]
[348573241,1736628639893,-3347.15,0.00021917,3]
[348573243,1736628639902,-500.0,0.00021917,3]
[348573244,1736628639911,-500.0,0.00021917,3]
[348573246,1736628639925,-754.77,0.00021917,3]
[348573248,1736628639934,-488.10882255,0.00021917,3]
[348573250,1736628639943,-500.0,0.00021917,3]
[348573251,1736628639952,-3258.51,0.00021917,3]
[348573253,1736628639962,-500.0,0.00021917,3]
[348573255,1736628639971,-500.0,0.00021917,3]
[348573256,1736628639980,-3258.51,0.00021917,3]
[348573257,1736628639990,-3258.51,0.00021917,3]
[348573258,1736628639999,-3258.51,0.00021917,3]
[348573259,1736628640010,-500.0,0.00021917,3]
[348573260,1736628640019,-3258.51,0.00021917,3]
[348573261,1736628640028,-500.0,0.00021917,3]
[348573262,1736628640037,-3258.51,0.00021917,3]
[348573263,1736628640046,-500.0,0.00021917,3]
[348573264,1736628640055,-3258.51,0.00021917,3]
[348573265,1736628640065,-500.0,0.00021917,3]
[348573266,1736628640074,-500.0,0.00021917,3]
[348573267,1736628640083,-3258.51,0.00021917,3]
[348573269,1736628640092,-500.0,0.00021917,3]
[348573270,1736628640102,-500.0,0.00021917,3]
[348573271,1736628640111,-1490.64,0.00021917,3]
[348573272,1736628640120,-500.0,0.00021917,3]
[348573273,1736628640129,-500.0,0.00021917,3]
[348573274,1736628640139,-500.0,0.00021917,3]
[348573275,1736628640149,-2280.76,0.00021917,3]
[348573276,1736628640158,-500.0,0.00021917,3]
[348573277,1736628640168,-500.0,0.00021917,3]
[348573278,1736628640177,-500.0,0.00021917,3]
[348573279,1736628640186,-880.44,0.00021917,3]
[348573280,1736628640195,-500.0,0.00021917,3]
[348573281,1736628640205,-510.56026234,0.00021917,3]
[348573282,1736628640214,-533.60240286,0.00021917,3]
[348573283,1736628640223,-500.0,0.00021917,3]
[348573284,1736628640232,-500.0,0.00021917,3]
[348573285,1736628640242,-500.0,0.00021917,3]
[348573286,1736628640251,-500.0,0.00021917,3]
[348573287,1736628640260,-500.0,0.00021917,3]
[348573288,1736628640270,-500.0,0.00021917,3]
[348573289,1736628640279,-500.0,0.00021917,3]
[348573290,1736628640288,-686.32,0.00021917,3]
[348573291,1736628640297,-500.0,0.00021917,3]
[348573292,1736628640306,-500.0,0.00021917,3]
[348573294,1736628640316,-500.0,0.00021917,3]
[348573300,1736628640325,-500.0,0.00021917,3]
[348573301,1736628640434,-500.0,0.00021917,3]
[348573302,1736628640443,-500.0,0.00021917,3]
[348573303,1736628640452,-500.0,0.00021917,3]
[348573304,1736628640461,-500.0,0.00021917,3]
[348573306,1736628640471,-500.0,0.00021917,3]
[348573307,1736628640481,-500.0,0.00021917,3]
[348573309,1736628640490,-500.0,0.00021917,3]
[348573311,1736628640499,-500.0,0.00021917,3]
[348573313,1736628640508,-500.0,0.00021917,3]
[348573315,1736628640517,-500.0,0.00021917,3]
[348573316,1736628640527,-500.0,0.00021917,3]
[348573318,1736628640536,-1214.45,0.00021917,3]
[348573320,1736628640545,-500.0,0.00021917,3]
[348573322,1736628640555,-181.06167068,0.00021917,3]
[348573324,1736628640564,-22370.71,0.00021917,3]
[348573326,1736628640573,-500.0,0.00021917,3]
[348573327,1736628640582,-500.0,0.00021917,3]
[348573328,1736628640591,-509.92,0.00021917,3]
[348573330,1736628640601,-500.0,0.00021917,3]
[348573332,1736628640611,-500.0,0.00021917,3]
[348573333,1736628640620,-500.0,0.00021917,3]
[348573334,1736628640629,-500.0,0.00021917,3]
[348573335,1736628640638,-1609.16,0.00021917,3]
[348573336,1736628640647,-1651.64,0.00021917,3]
[348573338,1736628640656,-2140.53,0.00021917,3]
[348573340,1736628640666,-500.0,0.00021917,3]
[348573341,1736628640675,-500.0,0.00021917,3]
[348573342,1736628640684,-500.0,0.00021917,3]
[348573343,1736628640693,-500.0,0.00021917,3]
[348573344,1736628640702,-777.79,0.00021917,3]
[348573346,1736628640711,-636.04,0.00021917,3]
[348573347,1736628640720,-500.0,0.00021917,3]
[348573349,1736628640729,-500.0,0.00021917,3]
[348573350,1736628640738,-500.0,0.00021917,3]
[348573351,1736628640748,-509.0970405,0.00021917,3]
[348573352,1736628640757,-495.68670623,0.00021917,3]
[348573353,1736628640766,-500.0,0.00021917,3]
[348573355,1736628640775,-500.0,0.00021917,3]
[348573357,1736628640784,-1691.91,0.00021917,3]
[348573359,1736628640794,-500.0,0.00021917,3]
[348573360,1736628640803,-500.0,0.00021917,3]
[348573361,1736628640813,-500.0,0.00021917,3]
[348573362,1736628640822,-781.93,0.00021917,3]
[348573364,1736628640831,-500.0,0.00021917,3]
[348573366,1736628640842,-796.56,0.00021917,3]
[348573368,1736628640855,-500.0,0.00021917,3]
[348573369,1736628640864,-500.0,0.00021917,3]
[348573370,1736628640873,-500.0,0.00021917,3]
[348573371,1736628640882,-500.0,0.00021917,3]
[348573372,1736628640892,-223.92562225,0.00021917,3]
[348573373,1736628640901,-1127.14,0.00021917,3]
[348573374,1736628640910,-203.78737036,0.00021973,2]
[348573375,1736628640923,-500.98685217,0.00021973,2]
[348573376,1736628640933,-500.0,0.00021973,2]
[348573377,1736628640942,-500.0,0.00021973,2]
[348573378,1736628640951,-500.0,0.00021973,2]
[348573379,1736628640962,-215.2936258,0.00021973,2]
[348573380,1736628640971,-151.15700529,0.00021973,2]
[348573381,1736628640980,-478.05500604,0.00021973,2]
[348573382,1736628640990,-590.29,0.00021999,3]
[348573383,1736628640999,-151.0,0.00021999,7]
[348573384,1736628641009,-544.91130599,0.00022,2]
[348573385,1736628641018,-239.5041964,0.00022027,2]
[348573386,1736628641027,-173.832134,0.00022098,2]
[348573387,1736628641037,-300.0,0.000221,10]
[348573388,1736628641046,-500.0,0.00022173,2]
[348573389,1736628641056,-447.80385633,0.00022173,2]
[348573390,1736628641067,-500.0,0.00022173,2]
[348573391,1736628641077,-500.0,0.00022173,2]
[348573392,1736628641087,-501.17272382,0.00022173,2]
[348573393,1736628641095,-500.0,0.00022173,2]
[348573394,1736628641105,-500.69303137,0.00022173,2]
[348573395,1736628641114,-155.7482365,0.00022173,2]
[348573396,1736628641123,-151.27573826,0.00022173,2]
[348573397,1736628641133,-570.7763961,0.00022173,2]
[348573398,1736628641142,-500.0,0.00022173,2]
[348573399,1736628641151,-500.0,0.00022173,2]
[348573400,1736628641160,-500.0,0.00022173,2]
[348573401,1736628641169,-486.09847177,0.00022173,2]
[348573402,1736628641179,-500.47831608,0.00022173,2]
[348573403,1736628641190,-500.0,0.00022173,2]
[348573404,1736628641201,-590.29,0.00022189,3]
[348573405,1736628641212,-500.0,0.00022189,3]
[348573406,1736628641221,-827.55,0.00022189,3]
[348573407,1736628641230,-500.0,0.00022189,3]
[348573408,1736628641240,-3258.51,0.00022189,3]
[348573409,1736628641249,-198.36019122,0.0002219,2]
[348573410,1736628641258,-590.29,0.0002219,3]
[348573411,1736628641268,-590.29,0.0002219,3]
[348573412,1736628641279,-590.29,0.0002219,3]
[348573413,1736628641289,-590.29,0.0002219,3]
[348573414,1736628641300,-590.49380213,0.0002219,3]
[348573415,1736628641311,-151.0,0.0002219,7]
[348573416,1736628641321,-500.0,0.0002219,3]
[348573417,1736628641332,-500.0,0.0002219,3]
[348573418,1736628641342,-500.0,0.0002219,3]
[348573419,1736628641352,-500.0,0.0002219,3]
[348573420,1736628641362,-500.0,0.0002219,3]
[348573421,1736628641373,-827.55,0.0002219,3]
[348573422,1736628641383,-827.55,0.0002219,3]
[348573423,1736628641393,-827.55,0.0002219,3]
[348573424,1736628641403,-827.55,0.0002219,3]
[348573425,1736628641412,-827.55,0.0002219,3]
[348573426,1736628641422,-500.0,0.0002219,3]
[348573427,1736628641432,-648.0958499,0.0002219,3]
[348573428,1736628641441,-2162.85,0.0002219,3]
[348573429,1736628641450,-2162.85,0.0002219,3]
[348573430,1736628641461,-2162.85,0.0002219,3]
[348573431,1736628641470,-2162.85,0.0002219,3]
[348573432,1736628641480,-2162.85,0.0002219,3]
[348573433,1736628641490,-3258.51,0.0002219,3]
[348573434,1736628641500,-3258.51,0.0002219,3]
[348573435,1736628641510,-3258.51,0.0002219,3]
[348573436,1736628641521,-3258.51,0.0002219,3]
[348573437,1736628641532,-3258.51,0.0002219,3]
[348573438,1736628641543,-151.0,0.00022191,7]
[348573439,1736628641552,-507.98881454,0.00022191,3]
[348573440,1736628641561,-524.11739906,0.00022191,3]
[348573441,1736628641571,-5331.17,0.00022191,3]
[348573442,1736628641581,-360.20117337,0.00022191,3]
[348573443,1736628641591,-500.0,0.00022191,3]
[348573444,1736628641601,-175.5620233,0.00022191,3]
[348573445,1736628641610,-500.0,0.00022191,3]
[348573446,1736628641620,-571.67464166,0.00022191,3]
[348573447,1736628641629,-886.46,0.00022191,3]
[348573448,1736628641639,-500.0,0.00022191,3]
[348573449,1736628641649,-506.35896811,0.00022191,3]
[348573450,1736628641659,-188.34,0.00022191,3]
[348573451,1736628641668,-500.0,0.00022191,3]
[348573452,1736628641677,-500.0,0.00022191,3]
[348573453,1736628641688,-500.0,0.00022191,3]
[348573454,1736628641697,-804.63,0.00022191,3]
[348573455,1736628641706,-500.0,0.00022191,3]
[348573456,1736628641715,-500.0,0.00022191,3]
[348573457,1736628641725,-636.97,0.00022191,3]
[348573458,1736628641734,-500.0,0.00022191,3]
[348573459,1736628641745,-500.0,0.00022191,3]
[348573460,1736628641754,-500.0,0.00022191,3]
[348573461,1736628641763,-500.0,0.00022191,3]
[348573462,1736628641772,-529.49,0.00022191,3]
[348573463,1736628641782,-500.0,0.00022191,3]
[348573464,1736628641791,-500.0,0.00022191,3]
[348573465,1736628641800,-500.0,0.00022191,3]
[348573466,1736628641809,-500.0,0.00022191,3]
[348573467,1736628641818,-500.0,0.00022191,3]
[348573468,1736628641828,-500.0,0.00022191,3]
[348573469,1736628641837,-500.0,0.00022191,3]
[348573470,1736628641846,-500.0,0.00022191,3]
[348573471,1736628641856,-278.39489244,0.00022191,3]
[348573472,1736628641865,-500.0,0.00022191,3]
[348573473,1736628641875,-176.79,0.00022191,3]
[348573474,1736628641884,-500.0,0.00022191,3]
[348573475,1736628641893,-191.79,0.00022191,3]
[348573476,1736628641903,-505.22,0.00022191,3]
[348573477,1736628641913,-506.91872714,0.00022191,3]
[348573478,1736628641924,-222.16951405,0.00022191,2]
[348573479,1736628641934,-597.95,0.00022191,3]
[348573480,1736628641943,-500.0,0.00022191,3]
[348573481,1736628641952,-500.0,0.00022191,3]
[348573482,1736628641962,-500.0,0.00022191,3]
[348573483,1736628641971,-500.0,0.00022191,3]
[348573484,1736628641982,-500.0,0.00022191,3]
[348573485,1736628641991,-500.0,0.00022191,3]
[348573486,1736628642001,-500.0,0.00022191,3]
[348573487,1736628642011,-500.0,0.00022191,3]
[348573488,1736628642020,-500.0,0.00022191,3]
[348573489,1736628642030,-523.63800539,0.00022191,3]
[348573490,1736628642039,-507.24823379,0.00022191,3]
[348573491,1736628642048,-622.21,0.00022191,3]
[348573492,1736628642058,-500.0,0.00022191,3]
[348573493,1736628642067,-500.0,0.00022191,3]
[348573494,1736628642076,-500.0,0.00022191,3]
[348573495,1736628642086,-2616.41455202,0.00022191,3]
[348573496,1736628642108,-2138.59544798,0.00022191,3]
[348573497,1736628642118,-500.0,0.00022191,3]
[348573498,1736628642127,-500.0,0.00022191,3]
[348573499,1736628642145,-200.93472419,0.00022191,3]
[348573500,1736628642157,-500.0,0.00022191,3]
[348573501,1736628642167,-500.0,0.00022191,3]
[348573502,1736628642177,-1063.99,0.00022191,3]
[348573503,1736628642189,-500.0,0.00022191,2]
[348573504,1736628642199,-429.12571244,0.00022191,3]
[348573505,1736628642210,-877.12,0.00022191,3]
[348573506,1736628642220,-382.74070476,0.00022191,3]
[348573507,1736628642230,-500.0,0.00022191,3]
[348573508,1736628642241,-500.0,0.00022191,3]
[348573509,1736628642251,-500.0,0.00022191,3]
[348573510,1736628642260,-500.0,0.00022191,3]
[348573511,1736628642270,-935.78,0.00022191,3]
[348573512,1736628642280,-14283.76,0.00022191,2]
[348573513,1736628642290,-500.0,0.00022191,3]
[348573514,1736628642299,-151.0,0.00022191,7]
[348573515,1736628642309,-500.0,0.00022191,3]
[348573516,1736628642320,-500.0,0.00022191,3]
[348573517,1736628642330,-2544.33,0.00022191,3]
[348573518,1736628642341,-500.0,0.00022191,3]
[348573519,1736628642351,-500.0,0.00022191,3]
[348573520,1736628642361,-527.76,0.00022191,3]
[348573521,1736628642371,-500.0,0.00022191,3]
[348573522,1736628642381,-500.0,0.00022191,3]
[348573523,1736628642391,-500.0,0.00022191,3]
[348573524,1736628642401,-684.47,0.00022191,3]
[348573525,1736628642412,-500.0,0.00022191,3]
[348573526,1736628642421,-500.0,0.00022191,3]
[348573527,1736628642434,-3347.15,0.00022191,3]
[348573528,1736628642443,-500.0,0.00022191,3]
[348573529,1736628642453,-500.0,0.00022191,3]
[348573530,1736628642462,-754.77,0.00022191,3]
[348573531,1736628642471,-500.0,0.00022191,3]
[348573532,1736628642481,-211.04186516,0.00022191,3]
[348573533,1736628642495,-288.95813484,0.00022191,3]
[348573534,1736628642505,-212.33797864,0.00022191,3]
[348573535,1736628642518,-333.68656081,0.00022191,3]
[348573536,1736628642602,-500.0,0.00021917,3]
[348573537,1736628642612,-944.61546055,0.00022191,3]
[348573538,1736628642621,-500.0,0.00022191,3]
[348573539,1736628642632,-500.0,0.00022191,3]
[348573540,1736628642641,-345.41130271,0.00022191,3]
[348573541,1736628642653,-399.82719863,0.00022191,3]
[348573542,1736628642669,-1535.52149866,0.00022191,3]
[348573543,1736628642678,-402.33746573,0.00022191,3]
[348573544,1736628642688,-880.44,0.00022191,3]
[348573545,1736628642697,-500.0,0.00022191,3]
[348573546,1736628642706,-500.0,0.00022191,3]
[348573547,1736628642715,-500.0,0.00022191,3]
[348573548,1736628642725,-686.32,0.00022191,3]
[348573549,1736628642734,-500.0,0.00022191,3]
[348573550,1736628642744,-500.0,0.00022191,3]
[348573551,1736628642754,-500.0,0.00022191,3]
[348573552,1736628642764,-500.0,0.00022191,3]
[348573553,1736628642774,-500.0,0.00022191,3]
[348573554,1736628642784,-500.0,0.00022191,3]
[348573555,1736628642795,-500.0,0.00022191,3]
[348573556,1736628642807,-500.0,0.00022191,3]
[348573557,1736628642819,-508.14053131,0.00022191,3]
[348573558,1736628642829,-500.0,0.00022191,3]
[348573559,1736628642839,-500.0,0.00022191,3]
[348573560,1736628642849,-500.0,0.00022191,3]
[348573561,1736628642860,-500.0,0.00022191,3]
[348573562,1736628642869,-500.0,0.00022191,3]
[348573563,1736628642880,-500.0,0.00022191,3]
[348573564,1736628642890,-500.0,0.00022191,3]
[348573565,1736628642899,-1214.45,0.00022191,3]
[348573566,1736628642911,-5810.50368444,0.00022191,3]
[348573567,1736628642965,-750.82011137,0.00022191,3]
[348573568,1736628642979,-377.26299996,0.00022191,3]
[348573569,1736628642991,-303.2774998,0.00022191,3]
[348573570,1736628643002,-731.21290869,0.00022191,3]
[348573571,1736628643134,-2706.80410819,0.00022191,3]
[348573572,1736628643146,-5200.87717571,0.00022191,3]
[348573573,1736628643158,-644.58258849,0.00022191,3]
[348573624,1736628643912,-2242.47030413,0.00022191,3]
[348573625,1736628643930,-3602.89861922,0.00022191,3]
[348573626,1736628643939,-500.0,0.00022191,3]
[348573627,1736628643949,-500.0,0.00022191,3]
[348573628,1736628643958,-509.92,0.00022191,3]
[348573629,1736628643967,-500.0,0.00022191,3]
[348573630,1736628643976,-500.0,0.00022191,3]
[348573631,1736628643986,-1609.16,0.00022191,3]
[348573632,1736628643995,-1651.64,0.00022191,3]
[348573633,1736628644004,-2140.53,0.00022191,3]
[348573634,1736628644012,-500.0,0.00022191,3]
[348573635,1736628644021,-507.10719409,0.00022191,3]
[348573636,1736628644031,-500.0,0.00022191,3]
[348573637,1736628644040,-500.0,0.00022191,3]
[348573638,1736628644050,-777.79,0.00022191,3]
[348573639,1736628644059,-636.04,0.00022191,3]
[348573640,1736628644069,-500.0,0.00022191,3]
[348573641,1736628644078,-500.0,0.00022191,3]
[348573642,1736628644088,-500.0,0.00022191,3]
[348573643,1736628644097,-500.0,0.00022191,3]
[348573644,1736628644107,-517.38100789,0.00022191,3]
[348573645,1736628644116,-1288.44901409,0.00022191,3]
[348573705,1736629178508,166.072724,0.00013973,2]
[348573707,1736629519356,500.0,0.00015052,2]
[348573710,1736629556126,-500.0,0.00019999,7]
[348573711,1736629556147,-334.86641891,0.00020091,2]
[348573712,1736629556168,-166.072724,0.00020447,2]
[348573713,1736629556189,-89.49921503,0.00020799,2]
[348573715,1736629646113,-223.24427928,0.000189,2]
[348573716,1736629646135,-187.74680606,0.00020753,2]
[348573756,1736629831968,-668.26225,0.00018025,2]
[348573757,1736629831980,-738.20142119,0.00018025,2]
[348573758,1736629831992,-103.87718338,0.00018025,2]
[348573759,1736629832002,-256.10391857,0.00020649,4]
[348573760,1736629832012,-2622.41020664,0.00020753,2]
[348573761,1736629832021,-3868.71395271,0.00020799,2]
[348573762,1736629832033,-662.36076914,0.00020799,2]
[348573763,1736629832086,-493.65,0.00020799,2]
[348573764,1736629832098,-49.77606312,0.00020799,2]
[348573765,1736629832107,-378.805,0.0002108,2]
[348573766,1736629832117,-150.0,0.000214,2]
[348573767,1736629832126,-57.21601039,0.00021817,3]
[348573768,1736629835221,-1836.36467473,0.00021817,3]
[348573769,1736629835231,-1442.16475728,0.00021817,2]
[348573770,1736629835241,-300.0,0.00021915,2]
[348573771,1736629835251,-500.0,0.00021916,2]
[348573772,1736629835261,-500.0,0.00021916,2]
[348573773,1736629835272,-474.3387568,0.00021916,2]
[348573774,1736629835282,-274.90483462,0.00021916,2]
[348573776,1736629835292,-187.913,0.00021916,2]
[348573777,1736629835302,-499.0,0.00021916,2]
[348573778,1736629835312,-500.0,0.00021916,7]
[348573779,1736629835321,-500.57307542,0.00021917,3]
[348573780,1736629835331,-500.0,0.00021917,3]
[348573781,1736629835341,-500.0,0.00021917,3]
[348573782,1736629835351,-500.49355234,0.00021917,3]
[348573783,1736629835360,-500.0,0.00021917,3]
[348573784,1736629835370,-500.0,0.00021917,2]
[348573785,1736629835380,-500.0,0.00021917,2]
[348573786,1736629835390,-500.0,0.00021917,3]
[348573787,1736629835401,-500.0,0.00021917,3]
[348573788,1736629835411,-500.0,0.00021917,3]
[348573789,1736629835421,-500.0,0.00021917,3]
[348573790,1736629835430,-250.25334083,0.00021917,3]
[348573791,1736629835441,-413.28339861,0.00021917,3]
[348573792,1736629835451,-500.0,0.00021917,3]
[348573793,1736629835460,-500.0,0.00021917,3]
[348573794,1736629835471,-500.0,0.00021917,3]
[348573795,1736629835481,-501.09268779,0.00021917,3]
[348573796,1736629835491,-500.0,0.00021917,3]
[348573797,1736629835500,-503.0409126,0.00021917,3]
[348573798,1736629835510,-500.0,0.00021917,3]
[348573799,1736629835520,-500.0,0.00021917,3]
[348573800,1736629835530,-500.0,0.00021917,3]
[348573801,1736629835539,-500.0,0.00021917,3]
[348573802,1736629835549,-500.0,0.00021917,3]
[348573803,1736629835558,-500.0,0.00021917,3]
[348573804,1736629835568,-500.0,0.00021917,3]
[348573805,1736629835578,-500.0,0.00021917,3]
[348573806,1736629835587,-500.0,0.00021917,3]
[348573807,1736629835597,-500.0,0.00021917,3]
[348573808,1736629835606,-500.0,0.00021917,3]
[348573809,1736629835616,-500.0,0.00021917,3]
[348573810,1736629835625,-1000.0,0.00021917,3]
[348573811,1736629835635,-500.0,0.00021917,3]
[348573812,1736629835649,-500.0,0.00021917,3]
[348573813,1736629835658,-500.0,0.00021917,3]
[348573814,1736629835670,-500.0,0.00021917,3]
[348573815,1736629835679,-500.0,0.00021917,3]
[348573816,1736629835689,-500.0,0.00021917,3]
[348573817,1736629835698,-500.0,0.00021917,3]
[348573818,1736629835708,-500.0,0.00021917,3]
[348573819,1736629835718,-500.0,0.00021917,3]
[348573820,1736629835729,-593.86953685,0.00021917,3]
[348573821,1736629835738,-500.0,0.00021917,3]
[348573822,1736629835748,-500.0,0.00021917,3]
[348573823,1736629835758,-500.0,0.00021917,3]
[348573824,1736629835768,-500.0,0.00021917,3]
[348573825,1736629835934,-500.0,0.00021917,3]
[348573826,1736629835947,-500.0,0.00021917,3]
[348573827,1736629835957,-500.0,0.00021917,3]
[348573828,1736629835966,-500.0,0.00021917,3]
[348573829,1736629835977,-500.0,0.00021917,3]
[348573830,1736629835987,-500.0,0.00021917,3]
[348573831,1736629835997,-500.0,0.00021917,3]
[348573832,1736629836008,-500.0,0.00021917,3]
[348573833,1736629836018,-500.0,0.00021917,3]
[348573834,1736629836027,-500.0,0.00021917,3]
[348573835,1736629836036,-500.0,0.00021917,3]
[348573836,1736629836045,-500.0,0.00021917,3]
[348573837,1736629836055,-500.0,0.00021917,3]
[348573838,1736629836064,-500.0,0.00021917,3]
[348573839,1736629836074,-150.43686423,0.00021917,3]
[348573840,1736629836083,-500.0,0.00021917,3]
[348573841,1736629836092,-500.0,0.00021917,3]
[348573842,1736629836102,-500.0,0.00021917,3]
[348573843,1736629836111,-500.0,0.00021917,3]
[348573844,1736629836120,-500.0,0.00021917,3]
[348573845,1736629836129,-500.0,0.00021917,3]
[348573846,1736629836139,-500.0,0.00021917,3]
[348573847,1736629836148,-500.0,0.00021917,3]
[348573848,1736629836158,-500.0,0.00021917,3]
[348573849,1736629836167,-500.0,0.00021917,3]
[348573850,1736629836176,-500.0,0.00021917,3]
[348573851,1736629836186,-500.0,0.00021917,3]
[348573852,1736629836196,-511.76498727,0.00021917,3]
[348573853,1736629836205,-500.0,0.00021917,3]
[348573854,1736629836215,-500.0,0.00021917,2]
[348573855,1736629836225,-500.0,0.00021917,3]
[348573856,1736629836234,-500.0,0.00021917,3]
[348573857,1736629836244,-500.0,0.00021917,3]
[348573858,1736629836254,-500.0,0.00021917,3]
[348573859,1736629836263,-500.0,0.00021917,3]
[348573860,1736629836273,-500.0,0.00021917,3]
[348573861,1736629836283,-500.0,0.00021917,3]
[348573862,1736629836292,-152.56661509,0.00021917,3]
[348573863,1736629836302,-500.0,0.00021917,3]
[348573864,1736629836311,-500.0,0.00021917,3]
[348573865,1736629836321,-500.0,0.00021917,3]
[348573866,1736629836330,-3092.42,0.00021917,3]
[348573867,1736629836340,-500.0,0.00021917,3]
[348573868,1736629836350,-500.0,0.00021917,3]
[348573869,1736629836359,-500.0,0.00021917,3]
[348573870,1736629836368,-500.0,0.00021917,3]
[348573871,1736629836378,-500.0,0.00021917,3]
[348573872,1736629836387,-500.0,0.00021917,3]
[348573873,1736629836397,-500.0,0.00021917,3]
[348573874,1736629836407,-158.07068626,0.00021917,3]
[348573875,1736629836417,-500.0,0.00021917,3]
[348573876,1736629836426,-500.0,0.00021917,3]
[348573877,1736629836436,-500.0,0.00021917,3]
[348573878,1736629836445,-500.0,0.00021917,3]
[348573879,1736629836454,-500.0,0.00021917,3]
[348573880,1736629836464,-500.0,0.00021917,3]
[348573881,1736629836474,-500.0,0.00021917,3]
[348573882,1736629836483,-500.0,0.00021917,3]
[348573883,1736629836492,-500.0,0.00021917,3]
[348573884,1736629836502,-500.0,0.00021917,3]
[348573885,1736629836512,-500.0,0.00021917,3]
[348573886,1736629836521,-764.19,0.00021917,3]
[348573887,1736629836531,-501.23049456,0.00021917,3]
[348573888,1736629836540,-500.0,0.00021917,3]
[348573889,1736629836550,-500.0,0.00021917,3]